[Event "Swiss Championship U14 2022"]
[Site "Biel"]
[Date "2022.07.19"]
[Round "4.2"]
[White "Stoll, Arturo"]
[Black "Arsenie, Cristian Marc"]
[Result "0-1"]
[ECO "B33"]
[WhiteElo "1434"]
[BlackElo "2001"]
[Annotator "TA"]
[PlyCount "110"]
[EventDate "2022.07.18"]
[EventType "swiss"]
[EventCountry "SUI"]
[SourceTitle "playchess.com"]
[Source "ChessBase"]
[SourceQuality "1"]
[TimeControl "5400+30"]

{[%evp 25,110,0,18,-94,0,0,12,-162,-42,-29,-56,-33,25,27,58,72,87,58,163,156,188,190,199,210,208,194,202,222,297,292,295,304,328,349,285,0,0,0,0,0,0,-227,-8,-154,-8,-58,0,-268,-19,-120,-108,-219,-235,-12809,-6086,-12818,-12814,-6137,-7170,-6095,-5795,-1467,-1008,-1038,-1054,-1044,-908,-933,-824,-576,-74,-583,-531,-378,-50,-356,-142,-29973,-29970,-29978,-29978,-29978,-29976,-29982,-29983,-29982,-29983]} 1. e4 {[%emt 0:00:13]} c5 {[%emt 0:00:00]} 2. Nf3 {[%emt 0:00:23]} Nc6 3. d4 {[%emt 0:00:13]} cxd4 4. Nxd4 {[%emt 0:00:00]} Nf6 {[%emt 0:00:09]} 5. Nc3 {[%emt 0:00:19]} e5 {[%emt 0:00:02]} 6. Ndb5 {[%emt 0:00:24]} d6 {[%emt 0:00:02]} 7. Bg5 {[%emt 0:00:14]} a6 {[%emt 0:00:00]} 8. Na3 {[%emt 0:00:02]} b5 {[%emt 0:00:01]} 9. Bxf6 {[%emt 0:00:34]} gxf6 {[%emt 0:00:01]} 10. Nd5 {[%emt 0:00:18]} f5 {[%emt 0:00:01]} 11. Bd3 {[%emt 0:00:39]} Be6 {[%emt 0:00:02]} 12. Qh5 {[%emt 0:00:10]} Rg8 {[%emt 0:00:02]} 13. g3 {[%emt 0:00:08]} Rg5 {[%emt 0:00:08]} (13... f4 $5) 14. Qxh7 {[%emt 0:03:25] B33: Sicilian: Pelikan and Sveshnikov Variations.} (14. Qd1 $1 $11 {remains equal.}) 14... Rg6 {[%emt 0:07:36]} (14... Nd4 $1 $17 15. c3 Rg6) 15. Qh5 $11 {[%emt 0:03:21]} (15. exf5 $2 Rh6 16. Qxh6 Bxh6 17. fxe6 fxe6 $19) 15... f4 {[%emt 0:08:07] [#]} 16. Be2 $146 {[%emt 0:03:06]} (16. Qd1 $11) ({Predecessor:} 16. c3 Bg4 17. Qh4 Qxh4 18. gxh4 Bf3 19. h5 Rg7 20. h6 Rg6 21. Rf1 O-O-O 22. h7 {1-0 (38) Skalicky,F (2245)-Kuta,J (2320) ICCF email 2003}) 16... Rh6 {[%emt 0:11:46]} (16... Nd4 $1 $19 17. Bd3 Bh6) 17. Qf3 $15 {[%emt 0:00:10]} Nd4 {[%emt 0:00:40]} 18. Qd3 {[%emt 0:02:37]} fxg3 {[%emt 0:12:40]} (18... f5 $15 19. c3 fxe4 20. Qxe4 Nxe2 21. Kxe2 Rc8) 19. fxg3 $11 {[%emt 0:01:20]} Bxd5 {[%emt 0:00:05]} 20. exd5 {[%emt 0:00:17]} Qg5 {[%emt 0:02:05]} 21. c3 {[%emt 0:03:00]} Nf5 {[%emt 0:00:59] [#]} (21... Nxe2 $14 22. Kxe2 b4) 22. Nxb5 $1 {[%emt 0:03:04][%mdl 512]} axb5 {[%emt 0:05:42]} (22... Nxg3 23. Rg1) 23. Qxb5+ {[%emt 0:00:08]} Ke7 {[%emt 0:01:06]} 24. Qb7+ {[%emt 0:00:25]} Kf6 {[%emt 0:00:06]} 25. Qxa8 {[%emt 0:00:19]} Nxg3 {[%emt 0:00:14] [#]} 26. Qxf8 $1 {[%emt 0:00:49]} Nxh1 {[%emt 0:07:13]} (26... Qe3 27. Qxd6+) 27. Qd8+ {[%emt 0:00:17]} (27. Qxd6+ $2 Kg7 28. Qc5 Rxh2 $19) 27... Kf5 {[%emt 0:00:40]} 28. Bd3+ $1 {[%emt 0:01:10]} (28. Qd7+ Kg6 29. Qg4 (29. Qxd6+ $2 Kg7 $19) 29... Qxg4 30. Bxg4 Rxh2 $17) 28... Kf4 {[%emt 0:00:06]} 29. Qxg5+ {[%emt 0:00:28]} Kxg5 $18 {[%emt 0:00:06][%mdl 4096] Endgame KRB-KRN} 30. Kf1 $2 {[%emt 0:01:15]} ({White must play} 30. a4 $1 $18 {[%cal Ra4a5]} Rxh2 31. a5) 30... Rxh2 $11 {[%emt 0:01:05]} 31. Kg1 {[%emt 0:00:30]} Rd2 {[%emt 0:00:09]} 32. Kxh1 {[%emt 0:00:28]} Rxd3 {[%emt 0:00:04] KR-KR} 33. c4 $2 {[%emt 0:00:09]} (33. a4 $11 {and White is okay.} Rd2 34. b4) 33... Rd2 $2 {[%emt 0:01:05]} (33... e4 $19 34. a4 Kf4) 34. Rg1+ {[%emt 0:01:31]} (34. b4 $11) 34... Kf5 {[%emt 0:04:02]} (34... Kf4 $1 $17 {...e4 is the strong threat.} 35. Rg2 Rd4 36. Rf2+ Ke4) 35. Rg2 {[%emt 0:00:31]} (35. Rg7 $11) 35... Rd1+ {[%emt 0:00:08]} ({Better is} 35... Rd4 $1 $15) 36. Kh2 $2 {[%emt 0:00:19][%mdl 8192] [#]} (36. Rg1 $1 $11 {and White has nothing to worry.} Rd2 37. Rg2 Rd1+ 38. Rg1 Rd2) 36... Ke4 $2 {[%emt 0:01:59]} (36... e4 $1 $19 {[%cal Re4e3]} 37. Rg1 Rd2+ 38. Kg3 Ke5) 37. Rf2 {[%emt 0:01:17]} (37. b4 $1 $11) 37... f5 $17 {[%emt 0:03:44][%cal Bf7f5,Bf5f4,Bf4f3][%mdl 1056] Hoping for ...f4. Black has strong compensation.} 38. Kg2 {[%emt 0:00:58]} (38. b4 $17 {only move.}) 38... f4 $19 {[%emt 0:02:46] aiming for ...Kd3.} 39. Rc2 $2 {[%emt 0:00:36]} (39. a4) 39... f3+ {[%emt 0:02:09]} 40. Kg3 {[%emt 0:00:49]} Rg1+ {[%emt 0:04:25]} 41. Kh2 {[%emt 0:00:24]} Rg7 {[%emt 0:01:15] ( -> ...Kf4)} 42. c5 {[%emt 0:02:22]} dxc5 {[%emt 0:03:04]} 43. d6 {[%emt 0:01:01]} Kd5 {[%emt 0:03:38] Threatens to win with ...e4.} 44. d7 {[%emt 0:00:28]} Rxd7 {[%emt 0:00:13]} 45. Kg3 {[%emt 0:00:17]} e4 {[%emt 0:00:16]} 46. Kf4 {[%emt 0:00:19]} Rf7+ {[%emt 0:02:11]} 47. Ke3 {[%emt 0:00:03]} Rf5 $2 {[%emt 0:00:36]} (47... Rg7 $19 {has better winning chances. And now ...Rg2 would win.} 48. Rh2 Rg1) 48. a3 $2 {[%emt 0:00:43][%mdl 8192]} (48. Rd2+ $17 {prevents the worst.} Ke5 49. Rc2) 48... c4 {[%emt 0:02:13]} 49. Rd2+ {[%emt 0:01:11]} Kc5 $2 {[%emt 0:00:11]} (49... Ke5 $19 50. Rh2 (50. Rc2 $2 Rf8 $19) 50... Rf7) 50. Rc2 $2 {[%emt 0:00:32][%mdl 8192] [#]} ({White should try} 50. Rd1 $1 $15) 50... Kb5 $2 {[%emt 0:00:57]} (50... Rf7 $1 $19 {is more deadly. White must now prevent ...Rf6.} 51. Rh2 Rf8) 51. Kf2 $2 {[%emt 0:00:29][%mdl 8192]} ({Not} 51. a4+ $2 Kxa4 52. Rxc4+ Kb3 $19) (51. Rf2 $17) 51... Rg5 {[%emt 0:02:53] Black mates.} 52. Ke3 {[%emt 0:00:32]} Rg2 {[%emt 0:00:09]} 53. Rc1 {[%emt 0:00:42]} Re2+ {[%emt 0:01:23]} 54. Kf4 {[%emt 0:00:41]} f2 {[%emt 0:00:20]} 55. Rf1 {[%emt 0:01:04]} e3 {[%emt 0:00:10] Never resign too early!  Weighted Error Value: White=0.94/Black=0.82} 0-1

[Event "Swiss Championship U14 2022"]
[Site "Biel"]
[Date "2022.07.19"]
[Round "4.3"]
[White "Malli, Suvirr"]
[Black "Scherler, Julius"]
[Result "1-0"]
[ECO "D00"]
[WhiteElo "1957"]
[BlackElo "1971"]
[Annotator "TA"]
[PlyCount "71"]
[EventDate "2022.07.18"]
[EventType "swiss"]
[EventCountry "SUI"]
[SourceTitle "playchess.com"]
[Source "ChessBase"]
[SourceQuality "1"]
[TimeControl "5400+30"]

{[%evp 9,71,12,21,14,62,44,41,37,33,31,56,41,47,33,103,0,64,14,41,14,67,69,61,59,70,70,71,80,71,84,69,83,83,76,150,148,136,95,94,99,91,88,135,99,268,266,257,243,642,642,745,642,554,514,807,795,795,785,770,770,755,734,29996,29997]} 1. d4 {[%emt 0:00:03]} d5 {[%emt 0:03:56]} 2. Nc3 {[%emt 0:00:07]} c6 {[%emt 0:04:58]} 3. Bf4 {[%emt 0:00:59]} Nf6 {[%emt 0:01:28]} 4. e3 {[%emt 0:00:27]} Bf5 {[%emt 0:01:29]} 5. f3 {[%emt 0:00:18]} h5 {[%emt 0:04:25]} 6. Bd3 {[%emt 0:04:08] D00: 1 d4 d5: Unusual lines.} e6 {[%emt 0:02:27]} (6... Bxd3 $11 {might be stronger.} 7. Qxd3 Nbd7) 7. Bxf5 {[%emt 0:05:54]} (7. e4 $5 {[%cal Re4f5]} Bh7 8. Nge2 $14) 7... exf5 {[%emt 0:00:12]} 8. Qd3 {[%emt 0:01:08] White is slightly better.} g6 {[%emt 0:03:48]} 9. O-O-O {[%emt 0:03:40]} Bd6 {[%emt 0:03:59]} 10. Bg5 {[%emt 0:05:23]} Be7 {[%emt 0:04:27] [#]} 11. h4 $146 {[%emt 0:06:57]} ({Predecessor:} 11. Bxf6 Bxf6 12. e4 fxe4 13. fxe4 Bg7 14. exd5 O-O 15. Nf3 Nd7 16. Rhe1 Nb6 17. dxc6 bxc6 {1-0 (34) Haserodt,J (2001)-Urban,R (1862) Bad Wiessee 2019}) 11... O-O {[%emt 0:05:17] [#]} (11... Nbd7 $14) 12. Nh3 {[%emt 0:03:17]} (12. g4 $1 $16 {[%cal Rg4f5]}) 12... Re8 {[%emt 0:03:14]} (12... Nbd7 $11) 13. Nf2 {[%emt 0:04:15]} (13. Bxf6 $14 Bxf6 14. e4 fxe4 15. fxe4) 13... Nbd7 $11 {[%emt 0:05:15]} 14. Rdg1 {[%emt 0:06:46]} (14. Kb1 $5 {[%cal Re3e4]}) 14... c5 {[%emt 0:05:33]} (14... Nh7 $11) 15. g4 $1 $14 {[%emt 0:04:44]} cxd4 {[%emt 0:00:57]} 16. exd4 {[%emt 0:01:43]} fxg4 {[%emt 0:02:07]} 17. fxg4 {[%emt 0:00:07]} Nxg4 {[%emt 0:03:24]} 18. Bxe7 {[%emt 0:03:31]} Qxe7 {[%emt 0:02:34]} 19. Nxg4 {[%emt 0:03:56]} hxg4 {[%emt 0:00:17]} 20. Rxg4 {[%emt 0:01:11][%cal Bg1g4,Bg4g5,Bg5e5][%mdl 32]} Nf6 {[%emt 0:00:31]} 21. Rg5 {[%emt 0:05:23] [#] Black must now prevent h5. White is more active.} Ne4 {[%emt 0:05:10]} ({Black should play} 21... Kg7) 22. Re5 $16 {[%emt 0:01:32]} (22. Nxd5 $6 Qd6 23. Qf3 Rad8 $14) (22. Rxd5 $2 Nf2 23. Qf3 Nxh1 24. Qxh1 Qe3+ 25. Kd1 Rac8 $19) 22... Qd6 {[%emt 0:08:06]} 23. Nxe4 {[%emt 0:01:05]} dxe4 {[%emt 0:00:37]} 24. Qxe4 {[%emt 0:04:00]} Rxe5 {[%emt 0:01:52]} 25. dxe5 {[%emt 0:00:39][%mdl 4096] Endgame KQR-KQR} Qe6 {[%emt 0:03:26]} ({Black should try} 25... Qc6 26. Qxc6 bxc6) 26. h5 {[%emt 0:03:52] aiming for hxg6.} Re8 $2 {[%emt 0:05:59] A mistake that costs the game.} (26... g5 $16 {might work better.}) 27. hxg6 $18 {[%emt 0:01:20]} ({Don't take} 27. Qxb7 $6 Qxe5 28. Qxa7 (28. hxg6 $2 {leads to mate.} Qe3+ 29. Kd1 Rd8+) 28... Rb8 $16) 27... Qxg6 {[%emt 0:02:44]} 28. Qh4 {[%emt 0:05:38][%csl Gh1][%cal Rh4h8]} Qg7 {[%emt 0:04:06] Inhibits Qh8+.} (28... Kf8 29. Kb1 Qe6) 29. e6 {[%emt 0:02:03]} f5 {[%emt 0:04:30]} 30. Qf2 {[%emt 0:02:19]} Rxe6 {[%emt 0:02:26]} 31. Qxf5 {[%emt 0:00:27]} Rf6 {[%emt 0:00:46]} (31... Rh6 $142 32. Qd5+ Kh8) 32. Qc8+ {[%emt 0:01:57]} Rf8 {[%emt 0:00:10]} 33. Qe6+ {[%emt 0:00:29]} Rf7 {[%emt 0:00:42]} 34. Rf1 {[%emt 0:00:28]} Qg5+ {[%emt 0:01:21]} 35. Kb1 {[%emt 0:00:30]} Qd5 {[%emt 0:00:20]} 36. Qxd5 {[%emt 0:00:09] Weighted Error Value: White=0.16 (very precise) /Black=0.76} 1-0

[Event "Swiss Championship U14 2022"]
[Site "Biel"]
[Date "2022.07.19"]
[Round "4.4"]
[White "Gut, Lionel"]
[Black "Rappazzo, Johannes"]
[Result "0-1"]
[ECO "E75"]
[WhiteElo "1957"]
[BlackElo "1761"]
[Annotator "TA"]
[PlyCount "112"]
[EventDate "2022.07.18"]
[EventType "swiss"]
[EventCountry "SUI"]
[SourceTitle "playchess.com"]
[Source "ChessBase"]
[SourceQuality "1"]
[TimeControl "5400+30"]

{[%evp 19,112,10,8,2,4,0,0,0,9,0,125,110,160,132,128,118,105,102,454,282,227,22,10,0,0,-22,-25,-66,-48,-85,-71,-97,-86,-88,-91,-256,-256,-270,-289,-264,-267,-234,-215,-625,-606,-798,-798,-794,-681,-773,-782,-756,-750,-656,-591,-864,-491,-943,-938,-908,-852,-807,-661,-656,-587,-572,-572,-781,-772,-1165,-1095,-1081,-1050,-29967,-29970,-29971,-29971,-29976,-29977,-29977,-29978,-29978,-29979,-29980,-29981,-29981,-29981,-29981,-29982,-29982,-29983,-29985,-29986,-29985,-29986]} 1. d4 {[%emt 0:00:04]} Nf6 {[%emt 0:00:02]} 2. c4 {[%emt 0:00:03]} g6 {[%emt 0:00:02]} 3. Nc3 {[%emt 0:00:05]} Bg7 {[%emt 0:00:03]} 4. e4 {[%emt 0:00:05]} d6 {[%emt 0:00:02]} 5. Be2 {[%emt 0:00:06]} O-O {[%emt 0:00:04]} 6. Bg5 {[%emt 0:00:10]} c5 {[%emt 0:00:06]} 7. d5 {[%emt 0:00:09]} e6 {[%emt 0:00:09]} 8. Qd2 {[%emt 0:00:19]} exd5 {[%emt 0:00:23]} 9. exd5 {[%emt 0:00:09]} Qb6 {[%emt 0:00:23]} 10. Nf3 {[%emt 0:01:09]} Bf5 {[%emt 0:05:41]} 11. Nh4 {[%emt 0:05:08]} Ne4 {[%emt 0:00:39]} 12. Nxe4 {[%emt 0:00:41]} Bxe4 {[%emt 0:00:00]} 13. f3 {[%emt 0:02:51] The position is equal.} h6 $1 {[%emt 0:04:44]} (13... Qxb2 14. Rc1 $16) (13... Bxb2 14. Rd1 Bxd5 15. cxd5 $16) 14. Bf4 {[%emt 0:13:19]} (14. Bxh6 {feels hotter.} Bxh6 15. Qxh6 Qxb2 16. O-O) 14... Bf6 {[%emt 0:27:37]} (14... Qxb2 $11 {remains equal.} 15. Qxb2 Bxb2) 15. O-O {[%emt 0:05:17][%cal Of4h6]} (15. fxe4 Bxh4+ 16. g3 Bf6 $14) 15... Bxh4 {[%emt 0:00:00]} (15... Qxb2 $142 16. fxe4 Qxd2 17. Bxd2 Bxh4) 16. fxe4 {[%emt 0:04:03]} Bg5 {[%emt 0:00:00]} 17. Bxg5 {[%emt 0:12:35]} hxg5 {[%emt 0:00:58]} 18. Bg4 {[%emt 0:06:32] Inhibits Nd7. Hoping for e5.} (18. Qxg5 Qxb2 19. Rae1 Qd4+ 20. Kh1 Na6 $11) 18... f6 {[%emt 0:02:34][%mdl 8192]} (18... Qd8 $16 {is tougher.}) 19. Be6+ {[%emt 0:00:00]} Kg7 {[%emt 0:00:00] [#]} 20. Rae1 $2 {[%emt 0:00:00]} (20. h4 $1 $18 {[%cal Rh4g5]} gxh4 21. Rf4) 20... Qd8 $11 {[%emt 0:19:31]} 21. e5 {[%emt 0:01:50]} dxe5 {[%emt 0:03:12]} 22. Qe3 {[%emt 0:02:57]} Na6 {[%emt 0:00:00]} 23. Rd1 {[%emt 0:00:17]} Qd6 {[%emt 0:00:00]} 24. a3 {[%emt 0:05:59]} Nc7 {[%emt 0:00:00]} 25. Bh3 {[%emt 0:12:59]} b6 {[%emt 0:06:06]} 26. Rb1 {[%emt 0:06:23]} Rh8 {[%emt 0:00:00]} 27. Rfd1 $2 {[%emt 0:05:21]} (27. Bg4 $17) 27... Rh4 $19 {[%emt 0:01:40]} 28. b3 {[%emt 0:00:00]} Rah8 {[%emt 0:01:21][%cal Ba8h8,Bh8h5,Bh5h4][%mdl 32]} 29. Qg3 {[%emt 0:04:38] Against g4} Ne8 {[%emt 0:11:38]} 30. Re1 {[%emt 0:07:00]} e4 {[%emt 0:00:00]} 31. Re3 $2 {[%emt 0:00:29]} (31. b4) 31... f5 {[%emt 0:02:50][%cal Bf6f5,Bf5f4][%mdl 32] Threatens to win with ...f4.} 32. Rf1 {[%emt 0:06:36]} f4 {[%emt 0:00:00]} 33. Qxg5 {[%emt 0:00:00]} R8h5 {[%emt 0:00:00]} 34. Qxh4 {[%emt 0:00:00]} Rxh4 {[%emt 0:00:00]} 35. Rxe4 {[%emt 0:00:00]} Nf6 {[%emt 0:00:00]} 36. Re6 {[%emt 0:00:00]} Qf8 {[%emt 0:00:24] ...Nh7 is the strong threat.} 37. Rfe1 {[%emt 0:00:00]} g5 {[%emt 0:01:57][%cal Bg6g5,Bg5g4][%mdl 32] White must now prevent ...g4.} 38. R1e5 {[%emt 0:00:00]} (38. Bf5 $142 Nxd5 39. Rg6+ Kh8 40. cxd5) 38... g4 {[%emt 0:06:59]} 39. Rg5+ {[%emt 0:00:00]} Kh7 {[%emt 0:01:06]} 40. Rf5 {[%emt 0:00:19] [#]} Kg6 $1 {[%emt 0:01:50]} 41. Rxf4 {[%emt 0:00:00] [#]} Kg7 $1 {[%emt 0:00:35][%cal Of8f7]} 42. d6 {[%emt 0:00:00]} Qd8 {[%emt 0:03:49]} ({Not} 42... gxh3 43. Rxh4 Ng8 44. Rg4+ (44. Rxh3 Qf4 $11) (44. gxh3 Qf3 $11) 44... Kh7 45. Rh4+ (45. gxh3 Qf3 $11) 45... Kg7 46. Rg4+ (46. Rxh3 Qf4 $11) (46. gxh3 Qf3 $11) 46... Kh7 47. Rh4+ (47. gxh3 Qf3 $11) 47... Kg7 $16) 43. a4 {[%emt 0:01:04] [#]} Kf7 $1 {[%emt 0:01:49]} 44. Re7+ {[%emt 0:00:52]} (44. Bxg4 Rxg4) 44... Kg6 {[%emt 0:00:21]} 45. Re6 {[%emt 0:00:25] [#]} Kg5 $1 {[%emt 0:01:54]} 46. Rfxf6 {[%emt 0:03:03]} (46. g3 Rxh3) 46... Qxf6 {[%emt 0:00:00] Black mates.} 47. Rxf6 {[%emt 0:00:12]} Kxf6 {[%emt 0:00:00]} 48. Bxg4 {[%emt 0:00:07]} Rxg4 {[%emt 0:00:00] KR-KP} 49. Kf2 {[%emt 0:00:10]} Rd4 {[%emt 0:00:00]} 50. Ke3 {[%emt 0:00:00]} Rxd6 {[%emt 0:00:00]} 51. g3 {[%emt 0:00:11]} Kf5 {[%emt 0:00:00]} 52. h3 {[%emt 0:00:04]} Rd1 {[%emt 0:00:00]} 53. g4+ {[%emt 0:00:06]} Kg5 {[%emt 0:00:00]} 54. Ke4 {[%emt 0:00:03]} Rh1 {[%emt 0:00:00]} 55. Ke5 {[%emt 0:00:04]} Rxh3 {[%emt 0:00:00]} 56. Kd6 {[%emt 0:00:02]} Kxg4 {[%emt 0:00:13] What a bad dream for White.  Weighted Error Value: White=0.78/Black=0.50} 0-1

[Event "Swiss Championship U14 2022"]
[Site "Biel"]
[Date "2022.07.19"]
[Round "4.5"]
[White "Haas, Anthony"]
[Black "Artan, Tamir"]
[Result "1-0"]
[ECO "E00"]
[WhiteElo "1638"]
[BlackElo "1590"]
[Annotator "NA RC COMBH"]
[PlyCount "97"]
[EventDate "2022.07.18"]
[EventType "swiss"]
[EventCountry "SUI"]
[SourceTitle "playchess.com"]
[Source "ChessBase"]
[SourceQuality "1"]
[TimeControl "5400+30"]

1. d4 {[%emt 0:00:03]} Nf6 {[%emt 0:00:11]} 2. c4 {[%emt 0:00:05]} e6 {[%emt 0:00:06]} 3. g3 {[%emt 0:00:03]} Bb4+ {[%emt 0:00:31]} 4. Bd2 {[%emt 0:01:33]} Qe7 {[%emt 0:00:44]} 5. Bg2 {[%emt 0:02:03]} d5 {[%emt 0:06:50]} 6. Nf3 {[%emt 0:03:00]} c5 {[%emt 0:04:44]} 7. Bxb4 {[%emt 0:06:09]} cxb4 {[%emt 0:00:07]} 8. O-O {[%emt 0:00:21]} O-O {[%emt 0:01:09]} 9. Nbd2 {[%emt 0:02:23]} Bd7 {[%emt 0:01:21]} 10. Ne5 {[%emt 0:03:55]} Nc6 {[%emt 0:00:25]} 11. Ndf3 {[%emt 0:15:43]} Rfd8 {[%emt 0:03:01]} 12. e3 {[%emt 0:20:19]} Na5 {[%emt 0:05:10]} 13. Nxd7 {[%emt 0:03:46]} Rxd7 {[%emt 0:01:56]} 14. cxd5 {[%emt 0:02:56]} Nxd5 {[%emt 0:01:28]} 15. Rc1 {[%emt 0:00:50]} Rc7 {[%emt 0:00:53]} 16. Ne5 {[%emt 0:12:15]} Rac8 {[%emt 0:01:46]} 17. Qd2 {[%emt 0:05:37]} Nc4 {[%emt 0:03:49]} 18. Nxc4 {[%emt 0:01:09]} Rxc4 {[%emt 0:00:06]} 19. Rxc4 {[%emt 0:01:08]} Rxc4 {[%emt 0:00:07]} 20. Bxd5 {[%emt 0:00:35]} exd5 {[%emt 0:00:10]} 21. Rc1 {[%emt 0:00:07]} Qc7 {[%emt 0:00:12]} 22. Re1 {[%emt 0:01:44]} a5 {[%emt 0:02:27]} 23. Re2 {[%emt 0:00:46]} h6 {[%emt 0:02:30]} 24. b3 {[%emt 0:01:35]} Rc1+ {[%emt 0:01:37]} 25. Kg2 {[%emt 0:00:10]} Qc3 {[%emt 0:01:23]} 26. Kf3 {[%emt 0:08:53]} f5 {[%emt 0:03:54]} 27. Qxc3 {[%emt 0:00:37]} bxc3 {[%emt 0:00:10]} 28. Kf4 {[%emt 0:00:13]} Rd1 {[%emt 0:04:08]} 29. Rc2 {[%emt 0:01:23]} Rd2 {[%emt 0:00:13]} 30. Rxc3 {[%emt 0:00:06]} Rxf2+ {[%emt 0:00:16]} 31. Ke5 {[%emt 0:00:07]} a4 {[%emt 0:02:37]} 32. a3 {[%emt 0:02:05]} b5 {[%emt 0:04:08]} 33. b4 {[%emt 0:00:31]} Rb2 {[%emt 0:00:21]} 34. Kxd5 {[%emt 0:00:09]} Rb3 {[%emt 0:00:06]} 35. Rc5 {[%emt 0:00:40]} Rxa3 {[%emt 0:02:07]} 36. Rxb5 {[%emt 0:00:10]} Rxe3 {[%emt 0:00:27]} 37. Ra5 {[%emt 0:00:43]} Kf7 {[%emt 0:14:39]} 38. Rxa4 {[%emt 0:00:27]} Re8 {[%emt 0:03:14]} 39. Ra7+ {[%emt 0:00:15]} Kf6 {[%emt 0:00:24]} 40. b5 {[%emt 0:00:54]} Rd8+ {[%emt 0:01:12]} 41. Kc5 {[%emt 0:00:22]} Rc8+ {[%emt 0:04:32]} 42. Kd6 {[%emt 0:00:15]} Rd8+ {[%emt 0:00:14]} 43. Rd7 {[%emt 0:00:14]} Rb8 {[%emt 0:00:17]} 44. Kc6 {[%emt 0:00:10]} Ke6 {[%emt 0:01:50]} 45. Rxg7 {[%emt 0:00:19]} Rd8 {[%emt 0:01:48]} 46. d5+ {[%emt 0:00:57]} Ke5 {[%emt 0:00:23]} 47. b6 {[%emt 0:00:21]} Rxd5 {[%emt 0:00:27]} 48. Re7+ {[%emt 0:00:06]} Kd4 {[%emt 0:00:11]} 49. Rd7 {[%emt 0:00:05]} 1-0

[Event "Swiss Championship U14 2022"]
[Site "Biel"]
[Date "2022.07.19"]
[Round "4.6"]
[White "Gut, Raphael"]
[Black "Bruessow, Nina"]
[Result "1-0"]
[ECO "E74"]
[WhiteElo "1898"]
[BlackElo "1655"]
[Annotator "NA RC COMBH"]
[PlyCount "59"]
[EventDate "2022.07.18"]
[EventType "swiss"]
[EventCountry "SUI"]
[SourceTitle "playchess.com"]
[Source "ChessBase"]
[SourceQuality "1"]
[TimeControl "5400+30"]

1. d4 {[%emt 0:00:05]} Nf6 {[%emt 0:00:07]} 2. c4 {[%emt 0:00:02]} g6 {[%emt 0:00:09]} 3. Nc3 {[%emt 0:00:03]} Bg7 {[%emt 0:00:08]} 4. e4 {[%emt 0:00:05]} d6 {[%emt 0:00:09]} 5. Be2 {[%emt 0:00:04]} O-O {[%emt 0:00:06]} 6. Bg5 {[%emt 0:00:44]} h6 {[%emt 0:00:14]} 7. Be3 {[%emt 0:00:04]} c5 {[%emt 0:00:14]} 8. d5 {[%emt 0:00:44]} e6 {[%emt 0:00:20]} 9. Qd2 {[%emt 0:00:35]} exd5 {[%emt 0:00:11]} 10. exd5 {[%emt 0:00:08]} Kh7 {[%emt 0:00:44]} 11. h3 {[%emt 0:03:25]} Na6 {[%emt 0:04:32]} 12. Nf3 {[%emt 0:01:26]} Re8 {[%emt 0:04:30]} 13. O-O {[%emt 0:02:57]} Bf5 {[%emt 0:00:59]} 14. Bd3 {[%emt 0:03:27]} Ne4 {[%emt 0:04:38]} 15. Nxe4 {[%emt 0:00:07]} Bxe4 {[%emt 0:00:07]} 16. Bxe4 {[%emt 0:00:12]} Rxe4 {[%emt 0:00:13]} 17. Qc2 {[%emt 0:00:57]} Re8 {[%emt 0:01:43]} 18. Rae1 {[%emt 0:02:54]} Rb8 {[%emt 0:05:50]} 19. Bf4 {[%emt 0:05:09]} Rxe1 {[%emt 0:01:25]} 20. Rxe1 {[%emt 0:00:03]} b5 {[%emt 0:00:30]} 21. b3 {[%emt 0:01:55]} Qf6 {[%emt 0:07:33]} 22. Bg3 {[%emt 0:02:22]} bxc4 {[%emt 0:03:03]} 23. bxc4 {[%emt 0:01:55]} Rb7 {[%emt 0:14:23]} 24. a3 {[%emt 0:05:42]} Rd7 {[%emt 0:14:12]} 25. Qa4 {[%emt 0:01:23]} Nb8 {[%emt 0:00:33]} 26. Rb1 {[%emt 0:00:53]} Rd8 {[%emt 0:00:34]} 27. Qxa7 {[%emt 0:00:45]} Nd7 {[%emt 0:01:37]} 28. Rb7 {[%emt 0:01:49]} Qe7 {[%emt 0:01:55]} 29. Qa5 {[%emt 0:08:21]} Kg8 {[%emt 0:04:01]} 30. Bxd6 {[%emt 0:01:03]} 1-0